bitfinex-derivatives/quotes_BNBF0:USTF0_20250524
["timestamp","ask_amount","ask_price","bid_price","bid_amount"]
[1748047211501,1.10172482,660.43,660.18,2.572]
[1748047211703,1.10172482,660.42,660.18,2.572]
[1748047211903,1.59483427,660.41,660.18,2.572]
[1748047212111,1.59483427,660.4,660.18,2.572]
[1748047212298,1.59472448,660.39,660.18,2.572]
[1748047212606,1.5947275,660.38,660.18,2.572]
[1748047212806,1.10170635,660.37,660.18,2.572]
[1748047213004,1.59475958,660.36,660.18,2.572]
[1748047213204,1.10170635,660.35,660.18,2.572]
[1748047213503,1.10170635,660.34,660.03,1.005]
[1748047213698,1.10170635,660.33,660.03,1.005]
[1748047213910,1.10170635,660.32,660.03,1.005]
[1748047214198,1.1300358,660.57,660.03,1.005]
[1748047214399,1.89730109,660.56,660.03,1.005]
[1748047214598,1.89730567,660.55,660.03,1.005]
[1748047214803,1.1300358,660.43,660.03,1.005]
[1748047215003,1.59452769,660.42,660.03,1.005]
[1748047215199,1.59452769,660.41,660.03,1.005]
[1748047215403,1.59452769,660.4,660.03,1.005]
[1748047215605,1.59452769,660.39,660.03,1.005]
[1748047215806,1.59452769,660.38,660.04,1.176]
[1748047215998,1.59382817,660.37,660.04,1.176]
[1748047216201,1.1009092,660.36,660.04,1.176]
[1748047216506,1.1300358,660.43,660.04,1.176]
[1748047216704,1.59295871,660.42,660.04,1.176]
[1748047216905,1.10055315,660.41,660.04,1.176]
[1748047217205,1.10055315,660.4,660.04,1.176]
[1748047217402,1.10055315,660.39,660.04,1.176]
[1748047217606,1.1300358,660.43,660.05,1.468]
[1748047217807,0.30283758,660.42,660.05,1.468]
[1748047220918,1.10007637,660.41,660.05,1.468]
[1748047221111,1.10007637,660.4,660.05,1.468]
[1748047221407,1.10007637,660.39,660.05,1.468]
[1748047221609,1.10007637,660.38,660.05,1.468]
[1748047221909,0.30283758,660.42,660.05,1.468]
[1748047222109,1.09995836,660.41,660.05,1.468]
[1748047222309,1.09995836,660.4,660.05,1.468]
[1748047222611,1.09995836,660.39,660.05,1.468]
[1748047222808,1.09995836,660.38,660.05,1.468]
[1748047223008,1.0997715,660.37,660.05,1.468]
[1748047223206,1.0997715,660.36,660.05,1.468]
[1748047223404,0.30283758,660.42,660.05,1.468]
[1748047223711,1.5915465,660.41,660.05,1.468]
[1748047223904,1.09957724,660.4,660.05,1.468]
[1748047224107,1.09957724,660.39,660.05,1.468]
[1748047224304,1.09957724,660.38,660.05,1.468]
[1748047224503,1.09957724,660.37,660.05,1.468]
[1748047224710,1.09957724,660.36,660.05,1.468]
[1748047224910,1.09939425,660.35,660.05,1.468]
[1748047225113,0.30283758,660.42,660.05,1.468]
[1748047225311,1.09938056,660.41,660.05,1.468]
[1748047225617,1.09918629,660.4,660.05,1.468]
[1748047225914,1.09918629,660.39,660.05,1.468]
[1748047226108,1.09918629,660.38,660.05,1.468]
[1748047226310,1.09918629,660.37,660.05,1.468]
[1748047226612,1.09918629,660.36,660.05,1.468]
[1748047226811,1.09918629,660.35,660.05,1.468]
[1748047227010,0.30283758,660.42,660.05,1.468]
[1748047227206,1.0990108,660.41,660.05,1.468]
[1748047227410,1.0990108,660.4,660.05,1.468]
[1748047227625,1.0990108,660.39,660.05,1.468]
[1748047227918,1.0990108,660.38,660.05,1.468]
[1748047228113,1.0990108,660.37,660.05,1.468]
[1748047228313,0.30283758,660.42,660.05,1.468]
[1748047228314,1.0990108,660.36,660.05,1.468]
[1748047228514,1.09874212,660.35,660.05,1.468]
[1748047228727,1.09865301,660.34,660.05,1.468]
[1748047228918,0.30283758,660.42,660.05,1.468]
[1748047229121,1.09866832,660.41,660.05,1.468]
[1748047229318,1.40151507,660.4,660.05,1.468]
[1748047229517,1.40151966,660.39,660.05,1.468]
[1748047229716,1.09866832,660.38,660.05,1.468]
[1748047229917,1.09866832,660.37,660.05,1.468]
[1748047230116,1.09866832,660.36,660.05,1.468]
[1748047230318,0.30285134,660.39,660.05,1.468]
[1748047241728,0.30285134,660.39,660.06,0.959]
[1748047258446,1.10280526,660.38,660.06,0.959]
[1748047258641,1.10280667,660.37,660.06,0.959]
[1748047258837,0.30285134,660.39,660.06,0.959]
[1748047259041,1.10280526,660.38,660.06,0.959]
[1748047259238,1.10280526,660.37,660.06,0.959]
[1748047259443,0.30285134,660.39,660.06,0.959]
[1748047259643,1.10371157,660.38,660.06,0.959]
[1748047259840,1.10371157,660.37,660.06,0.959]
[1748047260042,1.59749716,660.36,660.06,0.959]
[1748047260343,1.59749716,660.35,660.06,0.959]
[1748047260541,1.59758802,660.34,660.06,0.959]
[1748047260746,1.10379064,660.33,660.06,0.959]
[1748047260943,1.10379064,660.32,660.06,0.959]
[1748047261152,1.10379064,660.31,660.06,0.959]
[1748047261344,1.10379064,660.3,660.06,0.959]
[1748047261544,1.10379064,660.29,660.06,0.959]
[1748047261744,1.10383889,660.28,660.06,0.959]
[1748047261944,1.10385496,660.27,660.06,0.959]
[1748047262146,1.59783995,660.26,660.06,0.959]
[1748047262444,1.59789529,660.25,660.06,0.959]
[1748047262645,1.59789529,660.24,660.06,0.959]
[1748047262849,1.59789529,660.23,660.06,0.959]
[1748047263047,1.59789529,660.22,660.06,0.959]
[1748047263248,1.59789529,660.21,660.06,0.959]
[1748047263549,1.59789529,660.2,660.06,0.959]
[1748047263846,1.10385496,660.19,660.06,0.959]
[1748047264042,1.10385496,660.18,660.06,0.959]
[1748047264246,1.10385496,660.17,660.06,0.959]
[1748047264461,1.10385496,660.16,660.06,0.959]
[1748047264646,1.10385496,660.15,660.06,0.959]
[1748047264848,1.10385496,660.14,660.06,0.959]
[1748047265047,1.10385496,660.13,660.06,0.959]
[1748047265247,1.1300358,660.3,660.06,0.959]
[1748047265447,1.90165427,660.29,660.06,0.959]
[1748047265648,1.90165885,660.28,660.06,0.959]
[1748047265946,1.59875706,660.27,660.06,0.959]
[1748047266150,1.59875706,660.26,660.06,0.959]
[1748047266349,1.59875706,660.25,660.06,0.959]
[1748047266648,1.59875706,660.24,660.06,0.959]
[1748047266852,1.59875706,660.23,660.06,0.959]
[1748047267148,1.59875706,660.22,660.06,0.959]
[1748047267350,1.59894759,660.21,660.06,0.959]
[1748047267648,0.30290179,660.28,660.06,0.959]
[1748047267649,1.10463091,660.2,660.06,0.959]
[1748047267849,1.10463091,660.19,660.06,0.959]
[1748047268047,1.10463091,660.18,660.06,0.959]
[1748047268248,0.30290179,660.28,660.06,0.959]
[1748047268444,1.59794234,660.27,660.06,0.959]
[1748047268649,1.59794234,660.26,660.06,0.959]
[1748047268850,1.59842264,660.25,660.06,0.959]
[1748047269052,1.10403508,660.24,660.06,0.959]
[1748047269248,1.10403508,660.23,660.06,0.959]
[1748047269449,1.10403508,660.22,660.06,0.959]
[1748047269667,1.10403508,660.21,660.06,0.959]
[1748047269850,0.30290179,660.28,660.06,0.959]
[1748047270148,1.5984057,660.27,660.06,0.959]
[1748047270345,1.5984057,660.26,660.06,0.959]
[1748047270651,1.59844636,660.25,660.06,0.959]
[1748047270852,1.10407681,660.24,660.06,0.959]
[1748047271053,1.10407681,660.23,660.06,0.959]
[1748047271246,1.10407681,660.22,660.06,0.959]
[1748047271450,1.10407681,660.21,660.06,0.959]
[1748047271645,1.10407681,660.2,660.06,0.959]
[1748047271856,1.10407681,660.19,660.05,1.468]
[1748047272150,1.10407681,660.18,660.05,1.468]
[1748047272346,1.10407681,660.17,660.05,1.468]
[1748047272550,1.10407681,660.16,660.05,1.468]
[1748047272751,1.10407681,660.15,659.77,1.419]
[1748047272954,1.10407681,660.14,659.77,1.419]
[1748047273149,1.10407346,660.13,659.77,1.419]
[1748047273364,0.30290179,660.28,659.77,1.419]
[1748047273556,1.59828962,660.27,659.77,1.419]
[1748047273852,1.59828962,660.26,659.77,1.419]
[1748047274054,1.59828962,660.25,659.77,1.419]
[1748047274254,1.59825047,660.24,659.77,1.419]
[1748047274558,1.59825047,660.23,659.77,1.419]
[1748047274857,1.10392642,660.22,659.77,1.419]
[1748047275057,1.10392642,660.21,659.77,1.419]
[1748047275257,1.10392642,660.2,659.77,1.419]
[1748047275458,1.1300358,660.26,659.77,1.419]
[1748047275760,1.59801424,660.25,659.77,1.419]
[1748047275953,1.10376713,660.24,659.78,2.642]
[1748047276154,1.10376713,660.23,659.78,2.642]
[1748047276390,1.10376713,660.22,659.78,2.642]
[1748047276553,1.10376713,660.21,659.78,2.642]
[1748047276758,1.1300358,660.26,659.78,2.642]
[1748047277053,1.10375909,660.25,659.78,2.642]
[1748047277262,1.10375909,660.24,659.78,2.642]
[1748047277457,1.43293759,660.28,659.78,2.642]
[1748047277458,1.10375909,660.23,659.78,2.642]
[1748047277658,1.10375909,660.22,659.78,2.642]
[1748047277852,1.10375909,660.21,659.78,2.642]
[1748047278055,1.43293759,660.28,659.78,2.642]
[1748047278258,1.59795174,660.27,659.78,2.642]
[1748047278455,1.59795174,660.26,659.78,2.642]
[1748047278659,1.10373489,660.25,659.78,2.642]
[1748047278865,1.10373489,660.24,659.78,2.642]
[1748047279055,1.10373489,660.23,659.78,2.642]
[1748047279258,1.10373489,660.22,659.78,2.642]
[1748047279458,1.10373489,660.21,659.78,2.642]
[1748047279657,1.43293759,660.28,659.78,2.642]
[1748047279859,1.59807509,660.27,659.78,2.642]
[1748047280059,1.59807509,660.26,659.78,2.642]
[1748047280256,1.10382009,660.25,659.78,2.642]
[1748047280551,1.10382009,660.24,659.78,2.642]
[1748047280756,1.10382009,660.23,659.78,2.642]
[1748047280956,1.10382009,660.22,659.78,2.642]
[1748047281156,1.10382009,660.21,659.78,2.642]
[1748047281357,1.43293759,660.28,659.79,1.418]
[1748047281557,1.59819714,660.27,659.79,1.418]
[1748047281755,1.59819714,660.26,659.79,1.418]
[1748047281953,1.10386846,660.25,659.79,1.418]
[1748047282158,1.10386846,660.24,659.79,1.418]
[1748047282388,1.10386846,660.23,659.79,1.418]
[1748047282562,1.10386846,660.22,659.79,1.418]
[1748047282861,1.10386846,660.21,659.79,1.418]
[1748047283064,1.43293759,660.28,659.79,1.418]
[1748047283361,1.59812397,660.27,659.79,1.418]
[1748047283558,1.59812397,660.26,659.79,1.418]
[1748047283759,1.10385366,660.25,659.79,1.418]
[1748047283959,1.10385366,660.24,659.79,1.418]
[1748047284161,1.10385366,660.23,659.79,1.418]
[1748047284361,1.10385366,660.22,659.79,1.418]
[1748047284659,1.10385366,660.21,659.79,1.418]
[1748047284864,0.30290179,660.28,659.79,1.418]
[1748047285062,1.59808189,660.27,659.79,1.418]
[1748047285261,1.59808189,660.26,659.79,1.418]
[1748047285463,1.10382459,660.25,659.79,1.418]
[1748047285664,1.10382459,660.24,659.79,1.418]
[1748047285861,1.10382459,660.23,659.79,1.418]
[1748047286068,1.10382459,660.22,659.79,1.418]
[1748047286266,1.10382459,660.21,659.79,1.418]
[1748047286468,0.30290179,660.28,659.79,1.418]
[1748047286668,1.59809009,660.27,659.79,1.418]
[1748047286869,0.30290179,660.28,659.79,1.418]
[1748047286870,1.59808901,660.26,659.79,1.418]
[1748047287168,1.10379397,660.25,659.79,1.418]
[1748047287365,1.10379397,660.24,659.79,1.418]
[1748047287562,0.30290179,660.28,659.79,1.418]
[1748047287763,1.10455466,660.27,659.79,1.418]
[1748047287964,1.10455466,660.26,659.79,1.418]
[1748047288164,1.10455466,660.25,659.79,1.418]
[1748047288366,1.10455466,660.24,659.79,1.418]
[1748047288567,0.30290179,660.28,659.79,1.418]
[1748047288767,1.10455319,660.27,659.79,1.418]
[1748047288967,1.10455319,660.26,659.79,1.418]
[1748047289166,1.10455319,660.25,659.79,1.418]
[1748047289368,1.10455319,660.24,659.79,1.418]
[1748047289569,0.30290179,660.28,659.79,1.418]
[1748047289765,1.1045507,660.27,659.79,1.418]
[1748047289962,1.1045507,660.26,659.79,1.418]
[1748047290166,1.1045507,660.25,659.79,1.418]
[1748047290366,1.10456189,660.24,659.79,1.418]
[1748047290565,0.30290179,660.28,659.79,1.418]
[1748047290771,1.10454795,660.27,659.79,1.418]
[1748047291069,1.10454795,660.26,659.79,1.418]
[1748047291269,1.10454795,660.25,659.79,1.418]
[1748047291466,1.10454795,660.24,659.79,1.418]
[1748047291666,0.30290179,660.28,659.79,1.418]
[1748047291882,1.10456658,660.27,659.79,1.418]
[1748047292165,1.10456618,660.26,659.79,1.418]
[1748047292363,1.10456618,660.25,659.79,1.418]
[1748047292565,1.10456618,660.24,659.79,1.418]
[1748047292770,0.30290179,660.28,659.79,1.418]
[1748047293069,1.1045903,660.27,659.79,1.418]
[1748047293273,1.10458734,660.26,659.79,1.418]
[1748047293971,0.30290179,660.28,659.79,1.418]
[1748047296575,0.30290179,660.28,659.8,1.11735388]
[1748047298674,1.1300358,660.43,659.8,1.11735388]
[1748047299877,1.1300358,660.55,659.86,1.11735388]
[1748047300183,1.59819046,660.54,659.86,1.11735388]
[1748047300369,1.59819046,660.53,659.86,1.11735388]
[1748047300571,1.59819046,660.52,659.86,1.11735388]
[1748047300772,1.59819046,660.51,659.86,1.11735388]
[1748047300969,1.59811358,660.5,659.86,1.11735388]
[1748047301174,1.10410726,660.49,659.86,1.11735388]
[1748047301380,1.59808456,660.48,659.86,1.11735388]
[1748047301576,1.59808456,660.47,659.86,1.11735388]
[1748047301776,1.59808456,660.46,659.86,1.11735388]
[1748047302069,1.59808456,660.45,659.86,1.11735388]
[1748047302285,1.59808456,660.44,659.86,1.11735388]
[1748047302577,1.59808456,660.43,659.78,3.75935388]
[1748047302776,1.59808456,660.42,659.78,3.75935388]
[1748047302978,1.10410726,660.41,659.78,3.75935388]
[1748047303299,1.10410726,660.4,659.78,3.75935388]
[1748047303476,1.10410726,660.39,659.78,3.75935388]
[1748047303670,1.1300358,660.5,659.78,3.75935388]
[1748047303671,1.10410726,660.38,659.78,3.75935388]
[1748047303888,1.10410726,660.37,659.78,3.75935388]
[1748047304079,1.1300358,660.5,659.78,3.75935388]
[1748047304377,1.59851506,660.49,659.78,3.75935388]
[1748047304570,1.59851506,660.48,659.78,3.75935388]
[1748047304775,1.59851506,660.47,659.78,3.75935388]
[1748047304974,1.59851506,660.46,659.79,1.059]
[1748047305276,1.10454779,660.45,659.79,1.059]
[1748047305571,1.10454779,660.44,659.79,1.059]
[1748047305770,1.10454779,660.43,659.79,1.059]
[1748047305976,1.10454779,660.42,659.8,1.11735388]
[1748047306177,1.10454779,660.41,659.8,1.11735388]
[1748047306477,0.3028009,660.5,659.8,1.11735388]
[1748047306678,1.59826939,660.49,659.8,1.11735388]
[1748047306877,1.59826939,660.48,659.8,1.11735388]
[1748047307077,1.59826939,660.47,659.8,1.11735388]
[1748047307277,1.59826939,660.46,659.8,1.11735388]
[1748047307484,1.10440579,660.45,659.8,1.11735388]
[1748047307675,1.10440579,660.44,659.8,1.11735388]
[1748047307875,1.10440579,660.43,659.8,1.11735388]
[1748047308077,1.10440579,660.42,659.8,1.11735388]
[1748047308280,1.10440579,660.41,659.8,1.11735388]
[1748047308479,0.3028009,660.5,659.79,2.17635388]
[1748047308681,1.59806527,660.49,659.79,2.17635388]
[1748047308978,1.59806527,660.48,659.79,2.17635388]
[1748047309182,1.59806527,660.47,659.79,2.17635388]
[1748047309381,1.59806527,660.46,659.8,1.417]
[1748047309590,1.59806527,660.45,659.8,1.417]
[1748047309878,1.5980332,660.44,659.8,1.417]
[1748047310079,1.5980332,660.43,659.8,1.417]
[1748047310275,1.5980332,660.42,659.8,1.417]
[1748047310480,1.5980332,660.41,659.8,1.417]
[1748047310681,1.5980332,660.4,659.8,1.417]
[1748047310876,1.5980332,660.39,659.8,1.417]
[1748047311080,1.5980332,660.38,659.8,1.417]
[1748047311281,1.5980332,660.37,659.8,1.417]
[1748047311484,1.5980332,660.36,659.8,1.417]
[1748047311702,1.5980332,660.35,659.8,1.417]
[1748047311885,0.3028009,660.5,659.8,1.417]
[1748047311886,1.5980332,660.34,659.8,1.417]
[1748047312083,1.10427415,660.33,659.8,1.417]
[1748047312284,1.10427415,660.32,659.8,1.417]
[1748047312485,1.10427415,660.31,659.8,1.417]
[1748047312784,1.10427415,660.3,659.8,1.417]
[1748047312982,1.1300358,660.41,659.8,1.417]
[1748047313183,1.59438403,660.4,659.8,1.417]
[1748047313485,1.59438403,660.39,659.8,1.417]
[1748047313686,1.59438403,660.38,659.8,1.417]
[1748047313988,1.59438403,660.37,659.8,1.417]
[1748047314185,1.59438403,660.36,659.8,1.417]
[1748047314384,1.59438403,660.35,659.8,1.417]
[1748047314689,1.10055309,660.34,659.8,1.417]
[1748047314989,1.10055309,660.33,659.8,1.417]
[1748047315189,1.10055309,660.32,659.8,1.417]
[1748047315388,1.10055309,660.31,659.8,1.417]
[1748047315590,1.1300358,660.41,659.8,1.417]
[1748047315791,1.5963217,660.4,659.8,1.417]
[1748047316089,1.5963217,660.39,659.8,1.417]
[1748047316289,1.5963217,660.38,659.8,1.417]
[1748047316590,1.5963217,660.37,659.8,1.417]
[1748047316793,1.5963217,660.36,659.8,1.417]
[1748047316990,1.10250338,660.35,659.8,1.417]
[1748047317184,1.10250338,660.34,659.8,1.417]
[1748047317391,1.10250338,660.33,659.8,1.417]
[1748047317689,1.10250338,660.32,659.8,1.417]
[1748047317886,1.10250338,660.31,659.8,1.417]
[1748047318087,1.10250338,660.3,659.8,1.417]
[1748047318390,1.1300358,660.42,659.8,1.417]
[1748047318592,1.5963962,660.41,659.8,1.417]
[1748047318785,1.5963962,660.4,659.8,1.417]
[1748047318989,1.5963962,660.39,659.8,1.417]
[1748047319195,1.5963962,660.38,659.8,1.417]
[1748047319390,1.5963962,660.37,659.8,1.417]
[1748047319593,1.5963962,660.36,659.8,1.417]
[1748047319791,1.5963962,660.35,659.8,1.417]
[1748047319991,1.10254099,660.34,659.8,1.417]
[1748047320195,1.10254099,660.33,659.8,1.417]
[1748047320398,1.10254099,660.32,659.8,1.417]
[1748047320597,1.10338941,660.31,659.8,1.417]
[1748047320800,1.10338941,660.3,659.8,1.417]
[1748047321003,1.1300358,660.41,659.8,1.417]
[1748047321193,1.59724195,660.4,659.8,1.417]
[1748047321404,1.59724195,660.39,659.8,1.417]
[1748047321595,1.59724195,660.38,659.8,1.417]
[1748047321902,1.59724195,660.37,659.8,1.417]
[1748047322097,1.10338439,660.36,659.8,1.417]
[1748047322295,1.10338439,660.35,659.8,1.417]
[1748047322501,1.10338439,660.34,659.8,1.417]
[1748047322795,1.10338439,660.33,659.8,1.417]
[1748047322998,1.10338439,660.32,659.8,1.417]
[1748047323194,1.1300358,660.41,659.8,1.417]
[1748047323403,1.5972724,660.4,659.8,1.417]
[1748047323599,1.5972724,660.39,659.8,1.417]
[1748047323795,1.5972724,660.38,659.8,1.417]
[1748047324008,1.1034169,660.37,659.8,1.417]
[1748047324203,1.1034169,660.36,659.8,1.417]
[1748047324396,1.1034169,660.35,659.8,1.417]
[1748047324600,1.1034169,660.34,659.8,1.417]
[1748047324800,1.1300358,660.39,659.8,1.417]
[1748047325005,1.10352487,660.38,659.8,1.417]
[1748047325202,1.10352487,660.37,659.8,1.417]
[1748047325398,1.10352487,660.36,659.81,1.373]
[1748047325596,1.10352487,660.35,659.81,1.373]
[1748047325800,1.10352487,660.34,659.81,1.373]
[1748047325994,1.10352487,660.33,659.81,1.373]
[1748047326197,1.1300358,660.39,659.81,1.373]
[1748047326502,1.59776195,660.38,659.81,1.373]
[1748047326702,1.10375635,660.37,659.81,1.373]
[1748047326898,1.10375635,660.36,659.81,1.373]
[1748047327101,1.10375635,660.35,659.81,1.373]
[1748047327398,1.10375635,660.34,659.81,1.373]
[1748047327601,1.10375635,660.33,659.81,1.373]
[1748047327903,1.10378032,660.32,659.81,1.373]
[1748047328198,1.1300358,660.43,659.81,1.373]
[1748047328403,1.59790998,660.42,659.81,1.373]
[1748047328603,1.59790998,660.41,659.81,1.373]
[1748047328803,1.59790998,660.4,659.81,1.373]
[1748047329101,1.59790937,660.39,659.81,2.602]
[1748047329298,1.59790937,660.38,659.81,2.602]
[1748047329496,1.59790937,660.37,659.81,2.602]
[1748047329700,1.10384858,660.36,659.81,2.602]
[1748047329899,1.10384858,660.35,659.81,2.602]
[1748047330097,1.10384858,660.34,659.81,2.602]
[1748047330403,1.10384858,660.33,659.81,2.602]
[1748047330601,1.10384858,660.32,659.81,2.602]
[1748047330800,1.1300358,660.43,659.81,2.602]
[1748047330998,1.59782285,660.42,659.81,2.602]
[1748047331203,1.59782285,660.41,659.81,2.602]
[1748047331502,1.59782285,660.4,659.81,2.602]
[1748047331703,1.59782285,660.39,659.81,2.602]
[1748047331902,1.59782285,660.38,659.81,2.602]
[1748047332100,1.59782285,660.37,659.81,2.602]
[1748047332300,1.10374876,660.36,659.81,2.602]
[1748047332501,1.10374876,660.35,659.81,2.602]
[1748047332697,1.10391075,660.34,659.81,2.602]
[1748047332903,1.10391075,660.33,659.81,2.602]
[1748047333100,1.10391075,660.32,659.81,2.602]
[1748047333301,1.1040512,660.31,659.81,2.602]
[1748047333502,1.1300358,660.43,659.81,2.602]
[1748047333703,1.59830332,660.42,659.81,2.602]
[1748047334004,1.59830332,660.41,659.81,2.602]
[1748047334202,1.59830332,660.4,659.81,2.602]
[1748047334398,1.59848774,660.39,659.81,2.602]
[1748047334703,1.59848774,660.38,659.81,2.602]
[1748047334930,1.59848774,660.37,659.81,2.602]
[1748047335104,1.59848774,660.36,659.81,2.602]
[1748047335305,1.59848774,660.35,659.81,2.602]
[1748047335505,1.59848774,660.34,659.81,2.602]
[1748047335702,1.59848774,660.33,659.81,2.602]
[1748047335915,1.59848774,660.32,659.81,3.624]
[1748047336103,1.59848774,660.31,659.81,3.624]
[1748047336301,1.59848774,660.3,659.81,3.624]
[1748047336505,1.59848774,660.29,659.81,3.624]
[1748047336711,1.59848774,660.28,659.81,3.624]
[1748047336908,1.59848774,660.27,659.81,3.624]
[1748047337104,1.59848774,660.26,659.81,3.624]
[1748047337302,1.59848774,660.25,659.81,3.624]
[1748047337503,1.59856409,660.24,659.81,3.624]
[1748047337704,1.10433804,660.23,659.81,3.624]
[1748047337902,1.10433804,660.22,659.81,3.624]
[1748047338107,1.10433804,660.21,659.81,3.624]
[1748047338303,1.10433804,660.2,659.81,3.624]
[1748047338506,1.1300358,660.35,659.81,3.624]
[1748047338805,1.5987135,660.34,659.81,3.624]
[1748047339005,1.5987135,660.33,659.81,3.624]
[1748047339202,1.5987135,660.32,659.81,3.624]
[1748047339505,1.59869696,660.31,659.81,3.624]
[1748047339706,1.59869696,660.3,659.81,3.624]
[1748047339902,0.49436429,660.29,659.81,3.624]
[1748047340109,1.59876126,660.28,659.81,3.624]
[1748047340407,1.59876126,660.27,659.81,3.624]
[1748047340607,1.59876126,660.26,659.81,3.624]
[1748047340813,1.59876126,660.25,659.81,3.624]
[1748047341006,1.10439697,660.24,659.81,3.624]
[1748047341208,1.10439697,660.23,659.81,3.624]
[1748047341406,1.10439697,660.22,659.81,3.624]
[1748047341601,1.10439697,660.21,659.81,3.624]
[1748047341806,1.10439697,660.2,659.81,3.624]
[1748047342006,1.1300358,660.34,659.81,3.624]
[1748047342206,1.59871555,660.33,659.81,3.624]
[1748047342408,1.59871555,660.32,659.81,3.624]
[1748047342705,1.59871555,660.31,659.81,3.624]
[1748047342908,1.59871555,660.3,659.81,3.624]
[1748047343210,1.1300358,660.34,659.81,3.624]
[1748047343414,1.10434735,660.33,659.81,3.624]
[1748047343608,1.1300358,660.34,659.81,3.624]
[1748047344714,1.1300358,660.47,659.87,1.11735388]
[1748047344910,1.59844803,660.46,659.87,1.11735388]
[1748047345109,1.59845038,660.45,659.87,1.11735388]
[1748047345437,1.10424894,660.44,659.87,1.11735388]
[1748047345613,1.10424894,660.43,659.87,1.11735388]
[1748047345810,1.10424894,660.42,659.87,1.11735388]
[1748047346010,1.10424894,660.41,659.87,1.11735388]
[1748047346204,1.10424894,660.4,659.87,1.11735388]
[1748047346406,1.1300358,660.47,659.87,1.11735388]
[1748047346711,1.59840878,660.46,659.88,1.11735388]
[1748047346910,1.59840878,660.45,659.88,1.11735388]
[1748047347110,1.10422131,660.44,659.88,1.11735388]
[1748047347307,1.10422131,660.43,659.88,1.11735388]
[1748047347511,1.10422131,660.42,659.88,1.11735388]
[1748047347714,1.10422131,660.41,659.88,1.11735388]
[1748047347909,1.10422131,660.4,659.88,1.11735388]
[1748047348110,1.1300358,660.48,659.88,1.11735388]
[1748047348305,1.59831367,660.47,659.88,1.11735388]
[1748047348509,1.59831796,660.46,659.88,1.11735388]
[1748047348709,1.59831796,660.45,659.88,1.11735388]
[1748047349009,1.10415583,660.44,659.88,1.11735388]
[1748047349212,1.10415583,660.43,659.88,1.11735388]
[1748047349508,1.10415583,660.42,659.86,1.11735388]
[1748047349811,1.10415583,660.41,659.86,1.11735388]
[1748047350012,0.3028009,660.5,659.86,1.11735388]
[1748047350211,1.59829302,660.49,659.86,1.11735388]
[1748047350517,1.59828324,660.48,659.86,1.11735388]
[1748047350709,1.59828324,660.47,659.86,1.11735388]
[1748047350910,1.59828324,660.46,659.86,1.11735388]
[1748047351110,1.59828324,660.45,659.86,1.11735388]
[1748047351309,1.1041347,660.44,659.87,1.003]
[1748047351511,1.1041347,660.43,659.87,1.003]
[1748047351713,1.1041347,660.42,659.87,1.003]
[1748047351909,1.1041347,660.41,659.87,1.003]
[1748047352107,1.10413196,660.4,659.87,1.003]
[1748047352309,0.3028009,660.5,659.87,1.003]
[1748047352506,1.59827541,660.49,659.87,1.003]
[1748047352713,1.59827541,660.48,659.87,1.003]
[1748047352909,1.59827541,660.47,659.87,1.003]
[1748047353113,1.59827541,660.46,659.87,2.12035388]
[1748047353311,1.10412934,660.45,659.87,2.12035388]
[1748047353514,1.10412934,660.44,659.87,2.12035388]
[1748047353811,1.10412934,660.43,659.87,2.12035388]
[1748047354011,1.10411698,660.42,659.87,2.12035388]
[1748047354208,1.10411698,660.41,659.87,2.12035388]
[1748047354514,1.4328367,660.5,659.87,2.12035388]
[1748047354714,1.59824398,660.49,659.87,2.12035388]
[1748047354914,1.59824398,660.48,659.87,2.12035388]
[1748047355216,1.59824398,660.47,659.87,2.12035388]
[1748047355514,1.59823373,660.46,659.87,2.12035388]
[1748047355715,1.10410769,660.45,659.87,2.12035388]